Workbook

Sheet pic-journalier-consommation ave
A1: date | B1: pic_journalier_consommation | C1: temperature_moyenne | D1: temperature_reference | E1: Année : | F1: Nbre jours : | G1: distance jours avec le point : | H1: Distance Euclidienne : | I1: Distance Manhattan | K1: Donnée du point étudié :
A2: 2022-01-31 | B2: 78694 | C2: 6.5 | D2: 5.5 | E2: =DATE(YEAR(A2),1,1) -> 2022-01-01 | F2: =DATEDIF(E2,A2,"d") -> 30 | G2: =MIN(ABS(F2-$O$4),365-ABS(F2-$O$4)) -> 30 | H2: =G2*G2+($M$4-C2)*($M$4-C2)+($N$4-D2)*($N$4-D2) -> 1320.5 | I2: =ABS(G2)+ABS($M$4-C2)+ABS($N$4-D2) -> 59 | K2: Chiffres à saisir en rouge :
A3: 2022-01-30 | B3: 69256 | C3: 6.7 | D3: 5.5 | E3: =DATE(YEAR(A3),1,1) -> 2022-01-01 | F3: =DATEDIF(E3,A3,"d") -> 29 | G3: 29 | H3: =G3*G3+($M$4-C3)*($M$4-C3)+($N$4-D3)*($N$4-D3) -> 1255.74 | I3: 57.8 | K3: Date : | L3: année : | M3: tempé moyenne: | N3: tempé ref : | O3: Nbre jours :
A4: 2022-01-29 | B4: 72969 | C4: 6 | D4: 5.4 | E4: 2022-01-01 | F4: 28 | G4: 28 | H4: 1222.16 | I4: 57.6 | K4: 2000-01-01 | L4: =DATE(YEAR(K4),1,1) -> 2000-01-01 | M4: 21 | N4: 20 | O4: =DATEDIF(L4,K4,"d") -> 0
A5: 2022-01-28 | B5: 82398 | C5: 4.9 | D5: 5.4 | E5: 2022-01-01 | F5: 27 | G5: 27 | H5: 1201.37 | I5: 57.7
A6: 2022-01-27 | B6: 85105 | C6: 2.8 | D6: 5.3 | E6: 2022-01-01 | F6: 26 | G6: 26 | H6: 1223.33 | I6: 58.9 | K6: puis filtrer sur Distance Euclidienne : chercher les k minimum (et n faire la moyenne avec Excel)
A7: 2022-01-26 | B7: 85732 | C7: 1.8 | D7: 5.3 | E7: 2022-01-01 | F7: 25 | G7: 25 | H7: 1209.73 | I7: 58.9
A8: 2022-01-25 | B8: 85790 | C8: 1.5 | D8: 5.2 | E8: 2022-01-01 | F8: 24 | G8: 24 | H8: 1175.29 | I8: 58.3
A9: 2022-01-24 | B9: 84215 | C9: 2.7 | D9: 5.2 | E9: 2022-01-01 | F9: 23 | G9: 23 | H9: 1082.93 | I9: 56.1
A10: 2022-01-23 | B10: 74586 | C10: 3.4 | D10: 5.2 | E10: 2022-01-01 | F10: 22 | G10: 22 | H10: 1012.8 | I10: 54.4
A11: 2022-01-22 | B11: 75974 | C11: 3.2 | D11: 5.1 | E11: 2022-01-01 | F11: 21 | G11: 21 | H11: 979.85 | I11: 53.7
A12: 2022-01-21 | B12: 83408 | C12: 3.2 | D12: 5.1 | E12: 2022-01-01 | F12: 20 | G12: 20 | H12: 938.85 | I12: 52.7
A13: 2022-01-20 | B13: 81740 | C13: 4.9 | D13: 5 | E13: 2022-01-01 | F13: 19 | G13: 19 | H13: 845.21 | I13: 50.1
A14: 2022-01-19 | B14: 82395 | C14: 4.3 | D14: 5 | E14: 2022-01-01 | F14: 18 | G14: 18 | H14: 827.89 | I14: 49.7
A15: 2022-01-18 | B15: 82613 | C15: 3.8 | D15: 4.9 | E15: 2022-01-01 | F15: 17 | G15: 17 | H15: 812.85 | I15: 49.3
A16: 2022-01-17 | B16: 82453 | C16: 4.3 | D16: 4.9 | E16: 2022-01-01 | F16: 16 | G16: 16 | H16: 762.9 | I16: 47.8
A17: 2022-01-16 | B17: 76604 | C17: 2 | D17: 4.9 | E17: 2022-01-01 | F17: 15 | G17: 15 | H17: 814.01 | I17: 49.1
A18: 2022-01-15 | B18: 78233 | C18: 1.3 | D18: 4.8 | E18: 2022-01-01 | F18: 14 | G18: 14 | H18: 815.13 | I18: 48.9
A19: 2022-01-14 | B19: 87025 | C19: 1.7 | D19: 4.8 | E19: 2022-01-01 | F19: 13 | G19: 13 | H19: 772.53 | I19: 47.5
A20: 2022-01-13 | B20: 83880 | C20: 2.1 | D20: 4.8 | E20: 2022-01-01 | F20: 12 | G20: 12 | H20: 732.25 | I20: 46.1
A21: 2022-01-12 | B21: 82551 | C21: 2.6 | D21: 4.7 | E21: 2022-01-01 | F21: 11 | G21: 11 | H21: 693.65 | I21: 44.7
A22: 2022-01-11 | B22: 81151 | C22: 3.5 | D22: 4.7 | E22: 2022-01-01 | F22: 10 | G22: 10 | H22: 640.34 | I22: 42.8
A23: 2022-01-10 | B23: 78792 | C23: 5.6 | D23: 4.7 | E23: 2022-01-01 | F23: 9 | G23: 9 | H23: 552.25 | I23: 39.7
A24: 2022-01-09 | B24: 69473 | C24: 6.5 | D24: 4.7 | E24: 2022-01-01 | F24: 8 | G24: 8 | H24: 508.34 | I24: 37.8
A25: 2022-01-08 | B25: 71188 | C25: 6.8 | D25: 4.7 | E25: 2022-01-01 | F25: 7 | G25: 7 | H25: 484.73 | I25: 36.5
A26: 2022-01-07 | B26: 79601 | C26: 4.6 | D26: 4.6 | E26: 2022-01-01 | F26: 6 | G26: 6 | H26: 542.12 | I26: 37.8
A27: 2022-01-06 | B27: 80523 | C27: 3.2 | D27: 4.6 | E27: 2022-01-01 | F27: 5 | G27: 5 | H27: 579 | I27: 38.2
A28: 2022-01-05 | B28: 78633 | C28: 4.7 | D28: 4.6 | E28: 2022-01-01 | F28: 4 | G28: 4 | H28: 518.85 | I28: 35.7
A29: 2022-01-04 | B29: 70974 | C29: 9.1 | D29: 4.6 | E29: 2022-01-01 | F29: 3 | G29: 3 | H29: 387.77 | I29: 30.3
A30: 2022-01-03 | B30: 68201 | C30: 10.5 | D30: 4.6 | E30: 2022-01-01 | F30: 2 | G30: 2 | H30: 351.41 | I30: 27.9
A31: 2022-01-02 | B31: 59551 | C31: 10.5 | D31: 4.6 | E31: 2022-01-01 | F31: 1 | G31: 1 | H31: 348.41 | I31: 26.9
A32: 2022-01-01 | B32: 55515 | C32: 9.7 | D32: 4.6 | E32: 2022-01-01 | F32: 0 | G32: 0 | H32: 364.85 | I32: 26.7
A33: 2021-12-31 | B33: 58373 | C33: 10.4 | D33: 4.6 | E33: 2021-01-01 | F33: 364 | G33: 1 | H33: 350.52 | I33: 27
A34: 2021-12-30 | B34: 58912 | C34: 12.9 | D34: 4.6 | E34: 2021-01-01 | F34: 363 | G34: 2 | H34: 306.77 | I34: 25.5
A35: 2021-12-29 | B35: 62325 | C35: 12.6 | D35: 4.6 | E35: 2021-01-01 | F35: 362 | G35: 3 | H35: 316.72 | I35: 26.8
A36: 2021-12-28 | B36: 64461 | C36: 11.3 | D36: 4.7 | E36: 2021-01-01 | F36: 361 | G36: 4 | H36: 344.18 | I36: 29
A37: 2021-12-27 | B37: 65340 | C37: 9.7 | D37: 4.7 | E37: 2021-01-01 | F37: 360 | G37: 5 | H37: 386.78 | I37: 31.6
A38: 2021-12-26 | B38: 59744 | C38: 9 | D38: 4.7 | E38: 2021-01-01 | F38: 359 | G38: 6 | H38: 414.09 | I38: 33.3
A39: 2021-12-25 | B39: 59071 | C39: 8.9 | D39: 4.7 | E39: 2021-01-01 | F39: 358 | G39: 7 | H39: 429.5 | I39: 34.4
A40: 2021-12-24 | B40: 67500 | C40: 8.8 | D40: 4.8 | E40: 2021-01-01 | F40: 357 | G40: 8 | H40: 443.88 | I40: 35.4
A41: 2021-12-23 | B41: 78103 | C41: 5.7 | D41: 4.8 | E41: 2021-01-01 | F41: 356 | G41: 9 | H41: 546.13 | I41: 39.5
A42: 2021-12-22 | B42: 84283 | C42: 1 | D42: 4.8 | E42: 2021-01-01 | F42: 355 | G42: 10 | H42: 731.04 | I42: 45.2
A43: 2021-12-21 | B43: 82694 | C43: 1.8 | D43: 4.9 | E43: 2021-01-01 | F43: 354 | G43: 11 | H43: 717.65 | I43: 45.3
A44: 2021-12-20 | B44: 80965 | C44: 3.2 | D44: 4.9 | E44: 2021-01-01 | F44: 353 | G44: 12 | H44: 688.85 | I44: 44.9
A45: 2021-12-19 | B45: 70947 | C45: 3.9 | D45: 5 | E45: 2021-01-01 | F45: 352 | G45: 13 | H45: 686.41 | I45: 45.1
A46: 2021-12-18 | B46: 70085 | C46: 4.8 | D46: 5 | E46: 2021-01-01 | F46: 351 | G46: 14 | H46: 683.44 | I46: 45.2
A47: 2021-12-17 | B47: 77277 | C47: 5.6 | D47: 5.1 | E47: 2021-01-01 | F47: 350 | G47: 15 | H47: 684.17 | I47: 45.3
A48: 2021-12-16 | B48: 76767 | C48: 6.2 | D48: 5.2 | E48: 2021-01-01 | F48: 349 | G48: 16 | H48: 694.08 | I48: 45.6
A49: 2021-12-15 | B49: 78076 | C49: 5.8 | D49: 5.2 | E49: 2021-01-01 | F49: 348 | G49: 17 | H49: 739.08 | I49: 47
A50: 2021-12-14 | B50: 77627 | C50: 5.5 | D50: 5.3 | E50: 2021-01-01 | F50: 347 | G50: 18 | H50: 780.34 | I50: 48.2
A51: 2021-12-13 | B51: 76421 | C51: 6.7 | D51: 5.4 | E51: 2021-01-01 | F51: 346 | G51: 19 | H51: 778.65 | I51: 47.9
A52: 2021-12-12 | B52: 67723 | C52: 7.2 | D52: 5.5 | E52: 2021-01-01 | F52: 345 | G52: 20 | H52: 800.69 | I52: 48.3
A53: 2021-12-11 | B53: 71948 | C53: 5.5 | D53: 5.5 | E53: 2021-01-01 | F53: 344 | G53: 21 | H53: 891.5 | I53: 51
A54: 2021-12-10 | B54: 78667 | C54: 5.9 | D54: 5.6 | E54: 2021-01-01 | F54: 343 | G54: 22 | H54: 919.37 | I54: 51.5
A55: 2021-12-09 | B55: 80880 | C55: 4.7 | D55: 5.7 | E55: 2021-01-01 | F55: 342 | G55: 23 | H55: 999.18 | I55: 53.6
A56: 2021-12-08 | B56: 80717 | C56: 5.2 | D56: 5.8 | E56: 2021-01-01 | F56: 341 | G56: 24 | H56: 1027.28 | I56: 54
A57: 2021-12-07 | B57: 78955 | C57: 6.2 | D57: 5.9 | E57: 2021-01-01 | F57: 340 | G57: 25 | H57: 1042.85 | I57: 53.9
A58: 2021-12-06 | B58: 79470 | C58: 5.7 | D58: 6 | E58: 2021-01-01 | F58: 339 | G58: 26 | H58: 1106.09 | I58: 55.3
A59: 2021-12-05 | B59: 71092 | C59: 5.2 | D59: 6.1 | E59: 2021-01-01 | F59: 338 | G59: 27 | H59: 1171.85 | I59: 56.7
A60: 2021-12-04 | B60: 68893 | C60: 8.1 | D60: 6.2 | E60: 2021-01-01 | F60: 337 | G60: 28 | H60: 1140.85 | I60: 54.7
A61: 2021-12-03 | B61: 80769 | C61: 4.5 | D61: 6.3 | E61: 2021-01-01 | F61: 336 | G61: 29 | H61: 1300.94 | I61: 59.2
A62: 2021-12-02 | B62: 81700 | C62: 4.9 | D62: 6.4 | E62: 2021-01-01 | F62: 335 | G62: 30 | H62: 1344.17 | I62: 59.7
A63: 2021-12-01 | B63: 77429 | C63: 7.7 | D63: 6.5 | E63: 2021-01-01 | F63: 334 | G63: 31 | H63: 1320.14 | I63: 57.8
A64: 2021-11-30 | B64: 81773 | C64: 5 | D64: 6.7 | E64: 2021-01-01 | F64: 333 | G64: 32 | H64: 1456.89 | I64: 61.3
A65: 2021-11-29 | B65: 83333 | C65: 3.2 | D65: 6.8 | E65: 2021-01-01 | F65: 332 | G65: 33 | H65: 1580.08 | I65: 64
A66: 2021-11-28 | B66: 73276 | C66: 3.9 | D66: 6.9 | E66: 2021-01-01 | F66: 331 | G66: =MIN(ABS(F66-$O$4),365-ABS(F66-$O$4)) -> 34 | H66: 1620.02 | I66: =ABS(G66)+ABS($M$4-C66)+ABS($N$4-D66) -> 64.2
A67: 2021-11-27 | B67: 71943 | C67: 4.3 | D67: 7 | E67: =DATE(YEAR(A67),1,1) -> 2021-01-01 | F67: =DATEDIF(E67,A67,"d") -> 330 | G67: 35 | H67: =G67*G67+($M$4-C67)*($M$4-C67)+($N$4-D67)*($N$4-D67) -> 1672.89 | I67: 64.7
A68: 2021-11-26 | B68: 76170 | C68: 5.2 | D68: 7.2 | E68: 2021-01-01 | F68: 329 | G68: 36 | H68: 1709.48 | I68: 64.6
A69: 2021-11-25 | B69: 77326 | C69: 5.2 | D69: 7.3 | E69: 2021-01-01 | F69: 328 | G69: 37 | H69: 1779.93 | I69: 65.5
A70: 2021-11-24 | B70: 76838 | C70: 5.4 | D70: 7.4 | E70: 2021-01-01 | F70: 327 | G70: 38 | H70: 1846.12 | I70: 66.2
A71: 2021-11-23 | B71: 75777 | C71: 6 | D71: 7.5 | E71: 2021-01-01 | F71: 326 | G71: 39 | H71: 1902.25 | I71: 66.5
A72: 2021-11-22 | B72: 75698 | C72: 6.5 | D72: 7.7 | E72: 2021-01-01 | F72: 325 | G72: 40 | H72: 1961.54 | I72: 66.8
A73: 2021-11-21 | B73: 64212 | C73: 6.6 | D73: 7.8 | E73: 2021-01-01 | F73: 324 | G73: 41 | H73: 2037.2 | I73: 67.6
A74: 2021-11-20 | B74: 63997 | C74: 6.8 | D74: 8 | E74: 2021-01-01 | F74: 323 | G74: 42 | H74: 2109.64 | I74: 68.2
A75: 2021-11-19 | B75: 70070 | C75: 7.6 | D75: 8.1 | E75: 2021-01-01 | F75: 322 | G75: 43 | H75: 2170.17 | I75: 68.3
A76: 2021-11-18 | B76: 70716 | C76: 8.1 | D76: 8.2 | E76: 2021-01-01 | F76: 321 | G76: 44 | H76: 2241.65 | I76: 68.7
A77: 2021-11-17 | B77: 70612 | C77: 8.6 | D77: 8.4 | E77: 2021-01-01 | F77: 320 | G77: 45 | H77: 2313.32 | I77: 69
A78: 2021-11-16 | B78: 71292 | C78: 7.9 | D78: 8.5 | E78: 2021-01-01 | F78: 319 | G78: 46 | H78: 2419.86 | I78: 70.6
A79: 2021-11-15 | B79: 70416 | C79: 8.4 | D79: 8.7 | E79: 2021-01-01 | F79: 318 | G79: 47 | H79: 2495.45 | I79: 70.9
A80: 2021-11-14 | B80: 58475 | C80: 10.5 | D80: 8.8 | E80: 2021-01-01 | F80: 317 | G80: 48 | H80: 2539.69 | I80: 69.7
A81: 2021-11-13 | B81: 58846 | C81: 10.5 | D81: 9 | E81: 2021-01-01 | F81: 316 | G81: 49 | H81: 2632.25 | I81: 70.5
A82: 2021-11-12 | B82: 65406 | C82: 8.4 | D82: 9.1 | E82: 2021-01-01 | F82: 315 | G82: 50 | H82: 2777.57 | I82: 73.5
A83: 2021-11-11 | B83: 62534 | C83: 7.6 | D83: 9.2 | E83: 2021-01-01 | F83: 314 | G83: 51 | H83: 2897.2 | I83: 75.2
A84: 2021-11-10 | B84: 71105 | C84: 7.1 | D84: 9.4 | E84: 2021-01-01 | F84: 313 | G84: 52 | H84: 3009.57 | I84: 76.5
A85: 2021-11-09 | B85: 70024 | C85: 7.3 | D85: 9.5 | E85: 2021-01-01 | F85: 312 | G85: 53 | H85: 3106.94 | I85: 77.2
A86: 2021-11-08 | B86: 68890 | C86: 8.7 | D86: 9.7 | E86: 2021-01-01 | F86: 311 | G86: 54 | H86: 3173.38 | I86: 76.6
A87: 2021-11-07 | B87: 60171 | C87: 8.8 | D87: 9.8 | E87: 2021-01-01 | F87: 310 | G87: 55 | H87: 3277.88 | I87: 77.4
A88: 2021-11-06 | B88: 61848 | C88: 6.7 | D88: 10 | E88: 2021-01-01 | F88: 309 | G88: 56 | H88: 3440.49 | I88: 80.3
A89: 2021-11-05 | B89: 66850 | C89: 7.8 | D89: 10.1 | E89: 2021-01-01 | F89: 308 | G89: 57 | H89: 3521.25 | I89: 80.1
A90: 2021-11-04 | B90: 68304 | C90: 7.6 | D90: 10.3 | E90: 2021-01-01 | F90: 307 | G90: 58 | H90: 3637.65 | I90: 81.1
A91: 2021-11-03 | B91: 66041 | C91: 8.7 | D91: 10.4 | E91: 2021-01-01 | F91: 306 | G91: 59 | H91: 3724.45 | I91: 80.9
A92: 2021-11-02 | B92: 63906 | C92: 9.9 | D92: 10.6 | E92: 2021-01-01 | F92: 305 | G92: 60 | H92: 3811.57 | I92: 80.5
A93: 2021-11-01 | B93: 54530 | C93: 11.3 | D93: 10.7 | E93: 2021-01-01 | F93: 304 | G93: 61 | H93: 3901.58 | I93: 80
A94: 2021-10-31 | B94: 49505 | C94: 13.7 | D94: 10.9 | E94: 2021-01-01 | F94: 303 | G94: 62 | H94: 3980.1 | I94: 78.4
A95: 2021-10-30 | B95: 53483 | C95: 13.5 | D95: 11 | E95: 2021-01-01 | F95: 302 | G95: 63 | H95: 4106.25 | I95: 79.5
A96: 2021-10-29 | B96: 58910 | C96: 13.3 | D96: 11.1 | E96: 2021-01-01 | F96: 301 | G96: 64 | H96: 4234.5 | I96: 80.6
A97: 2021-10-28 | B97: 61095 | C97: 11.8 | D97: 11.3 | E97: 2021-01-01 | F97: 300 | G97: 65 | H97: 4385.33 | I97: 82.9
A98: 2021-10-27 | B98: 60513 | C98: 11.2 | D98: 11.4 | E98: 2021-01-01 | F98: 299 | G98: 66 | H98: 4526 | I98: 84.4
A99: 2021-10-26 | B99: 60052 | C99: 12.3 | D99: 11.6 | E99: 2021-01-01 | F99: 298 | G99: 67 | H99: 4635.25 | I99: 84.1
A100: 2021-10-25 | B100: 60104 | C100: 11.7 | D100: 11.7 | E100: 2021-01-01 | F100: 297 | G100: 68 | H100: 4779.38 | I100: 85.6
A101: 2021-10-24 | B101: 52533 | C101: 9.7 | D101: 11.9 | E101: 2021-01-01 | F101: 296 | G101: 69 | H101: 4954.3 | I101: 88.4
A102: 2021-10-23 | B102: 53230 | C102: 9.9 | D102: 12 | E102: 2021-01-01 | F102: 295 | G102: 70 | H102: 5087.21 | I102: 89.1
A103: 2021-10-22 | B103: 59692 | C103: 10.2 | D103: 12.1 | E103: 2021-01-01 | F103: 294 | G103: 71 | H103: 5220.05 | I103: 89.7
A104: 2021-10-21 | B104: 58051 | C104: 13.4 | D104: 12.3 | E104: 2021-01-01 | F104: 293 | G104: 72 | H104: 5301.05 | I104: 87.3
A105: 2021-10-20 | B105: 56739 | C105: 16.7 | D105: 12.4 | E105: 2021-01-01 | F105: 292 | G105: 73 | H105: 5405.25 | I105: 84.9
A106: 2021-10-19 | B106: 56261 | C106: 16.6 | D106: 12.6 | E106: 2021-01-01 | F106: 291 | G106: 74 | H106: 5550.12 | I106: 85.8
A107: 2021-10-18 | B107: 59545 | C107: 13.2 | D107: 12.7 | E107: 2021-01-01 | F107: 290 | G107: 75 | H107: 5739.13 | I107: 90.1
A108: 2021-10-17 | B108: 51772 | C108: 11.4 | D108: 12.8 | E108: 2021-01-01 | F108: 289 | G108: 76 | H108: 5920 | I108: 92.8
A109: 2021-10-16 | B109: 52449 | C109: 11.4 | D109: 13 | E109: 2021-01-01 | F109: 288 | G109: 77 | H109: 6070.16 | I109: 93.6
A110: 2021-10-15 | B110: 60366 | C110: 11.2 | D110: 13.1 | E110: 2021-01-01 | F110: 287 | G110: 78 | H110: 6227.65 | I110: 94.7
A111: 2021-10-14 | B111: 60541 | C111: 10.3 | D111: 13.2 | E111: 2021-01-01 | F111: 286 | G111: 79 | H111: 6401.73 | I111: 96.5
A112: 2021-10-13 | B112: 58295 | C112: 11.4 | D112: 13.4 | E112: 2021-01-01 | F112: 285 | G112: 80 | H112: 6535.72 | I112: 96.2
A113: 2021-10-12 | B113: 58163 | C113: 11.6 | D113: 13.5 | E113: 2021-01-01 | F113: 284 | G113: 81 | H113: 6691.61 | I113: 96.9
A114: 2021-10-11 | B114: 56339 | C114: 12.2 | D114: 13.6 | E114: 2021-01-01 | F114: 283 | G114: 82 | H114: 6842.4 | I114: 97.2
A115: 2021-10-10 | B115: 49030 | C115: 12.3 | D115: 13.8 | E115: 2021-01-01 | F115: 282 | G115: 83 | H115: 7003.13 | I115: 97.9
A116: 2021-10-09 | B116: 49764 | C116: 13 | D116: 13.9 | E116: 2021-01-01 | F116: 281 | G116: 84 | H116: 7157.21 | I116: 98.1
A117: 2021-10-08 | B117: 55808 | C117: 13.3 | D117: 14 | E117: 2021-01-01 | F117: 280 | G117: 85 | H117: 7320.29 | I117: 98.7
A118: 2021-10-07 | B118: 55145 | C118: 13 | D118: 14.2 | E118: 2021-01-01 | F118: 279 | G118: 86 | H118: 7493.64 | I118: 99.8
A119: 2021-10-06 | B119: 56249 | C119: 12.9 | D119: 14.3 | E119: 2021-01-01 | F119: 278 | G119: 87 | H119: 7667.1 | I119: 100.8
A120: 2021-10-05 | B120: 55572 | C120: 13.4 | D120: 14.4 | E120: 2021-01-01 | F120: 277 | G120: 88 | H120: 7833.12 | I120: 101.2
A121: 2021-10-04 | B121: 54149 | C121: 13.5 | D121: 14.6 | E121: 2021-01-01 | F121: 276 | G121: 89 | H121: 8006.41 | I121: 101.9
A122: 2021-10-03 | B122: 48083 | C122: 16 | D122: 14.7 | E122: 2021-01-01 | F122: 275 | G122: 90 | H122: 8153.09 | I122: 100.3
A123: 2021-10-02 | B123: 49029 | C123: 16.3 | D123: 14.8 | E123: 2021-01-01 | F123: 274 | G123: 91 | H123: 8330.13 | I123: 100.9
A124: 2021-10-01 | B124: 53993 | C124: 14 | D124: 15 | E124: 2021-01-01 | F124: 273 | G124: 92 | H124: 8538 | I124: 104
A125: 2021-09-30 | B125: 53453 | C125: 13.1 | D125: 15.1 | E125: 2021-01-01 | F125: 272 | G125: 93 | H125: 8735.42 | I125: 105.8
A126: 2021-09-29 | B126: 53233 | C126: 15 | D126: 15.2 | E126: 2021-01-01 | F126: 271 | G126: 94 | H126: 8895.04 | I126: 104.8
A127: 2021-09-28 | B127: 52738 | C127: 15 | D127: 15.3 | E127: 2021-01-01 | F127: 270 | G127: 95 | H127: 9083.09 | I127: 105.7
A128: 2021-09-27 | B128: 52444 | C128: 16.8 | D128: 15.5 | E128: 2021-01-01 | F128: 269 | G128: 96 | H128: 9253.89 | I128: 104.7
A129: 2021-09-26 | B129: 44874 | C129: 18.2 | D129: 15.6 | E129: 2021-01-01 | F129: 268 | G129: 97 | H129: 9436.2 | I129: 104.2
A130: 2021-09-25 | B130: 47273 | C130: 17.9 | D130: 15.7 | E130: 2021-01-01 | F130: 267 | G130: =MIN(ABS(F130-$O$4),365-ABS(F130-$O$4)) -> 98 | H130: 9632.1 | I130: =ABS(G130)+ABS($M$4-C130)+ABS($N$4-D130) -> 105.4
A131: 2021-09-24 | B131: 52327 | C131: 17 | D131: 15.9 | E131: =DATE(YEAR(A131),1,1) -> 2021-01-01 | F131: =DATEDIF(E131,A131,"d") -> 266 | G131: 99 | H131: =G131*G131+($M$4-C131)*($M$4-C131)+($N$4-D131)*($N$4-D131) -> 9833.81 | I131: 107.1
A132: 2021-09-23 | B132: 52312 | C132: 16.3 | D132: 16 | E132: 2021-01-01 | F132: 265 | G132: 100 | H132: 10038.09 | I132: 108.7
A133: 2021-09-22 | B133: 52763 | C133: 15.6 | D133: 16.1 | E133: 2021-01-01 | F133: 264 | G133: 101 | H133: 10245.37 | I133: 110.3
A134: 2021-09-21 | B134: 52288 | C134: 15.6 | D134: 16.3 | E134: 2021-01-01 | F134: 263 | G134: 102 | H134: 10446.85 | I134: 111.1
A135: 2021-09-20 | B135: 52297 | C135: 15.8 | D135: 16.4 | E135: 2021-01-01 | F135: 262 | G135: 103 | H135: 10649 | I135: 111.8
A136: 2021-09-19 | B136: 45118 | C136: 16.5 | D136: 16.5 | E136: 2021-01-01 | F136: 261 | G136: 104 | H136: 10848.5 | I136: 112
A137: 2021-09-18 | B137: 47224 | C137: 17.7 | D137: 16.6 | E137: 2021-01-01 | F137: 260 | G137: 105 | H137: 11047.45 | I137: 111.7
A138: 2021-09-17 | B138: 52113 | C138: 17.8 | D138: 16.8 | E138: 2021-01-01 | F138: 259 | G138: 106 | H138: 11256.48 | I138: 112.4
A139: 2021-09-16 | B139: 52939 | C139: 18.2 | D139: 16.9 | E139: 2021-01-01 | F139: 258 | G139: 107 | H139: 11466.45 | I139: 112.9
A140: 2021-09-15 | B140: 54009 | C140: 19.8 | D140: 17 | E140: 2021-01-01 | F140: 257 | G140: 108 | H140: 11674.44 | I140: 112.2
A141: 2021-09-14 | B141: 53663 | C141: 20.9 | D141: 17.2 | E141: 2021-01-01 | F141: 256 | G141: 109 | H141: 11888.85 | I141: 111.9
A142: 2021-09-13 | B142: 52617 | C142: 20.2 | D142: 17.3 | E142: 2021-01-01 | F142: 255 | G142: 110 | H142: 12107.93 | I142: 113.5
A143: 2021-09-12 | B143: 44808 | C143: 18.7 | D143: 17.4 | E143: 2021-01-01 | F143: 254 | G143: 111 | H143: 12333.05 | I143: 115.9
A144: 2021-09-11 | B144: 46951 | C144: 18.7 | D144: 17.5 | E144: 2021-01-01 | F144: 253 | G144: 112 | H144: 12555.54 | I144: 116.8
A145: 2021-09-10 | B145: 53027 | C145: 19.6 | D145: 17.7 | E145: 2021-01-01 | F145: 252 | G145: 113 | H145: 12776.25 | I145: 116.7
A146: 2021-09-09 | B146: 53843 | C146: 20.7 | D146: 17.8 | E146: 2021-01-01 | F146: 251 | G146: 114 | H146: 13000.93 | I146: 116.5
A147: 2021-09-08 | B147: 54403 | C147: 22.4 | D147: 17.9 | E147: 2021-01-01 | F147: 250 | G147: 115 | H147: 13231.37 | I147: 118.5
A148: 2021-09-07 | B148: 54254 | C148: 23.1 | D148: 18 | E148: 2021-01-01 | F148: 249 | G148: 116 | H148: 13464.41 | I148: 120.1
A149: 2021-09-06 | B149: 53651 | C149: 22.7 | D149: 18.2 | E149: 2021-01-01 | F149: 248 | G149: 117 | H149: 13695.13 | I149: 120.5
A150: 2021-09-05 | B150: 45376 | C150: 21.5 | D150: 18.3 | E150: 2021-01-01 | F150: 247 | G150: 118 | H150: 13927.14 | I150: 120.2
A151: 2021-09-04 | B151: 47423 | C151: 20.7 | D151: 18.4 | E151: 2021-01-01 | F151: 246 | G151: 119 | H151: 14163.65 | I151: 120.9
A152: 2021-09-03 | B152: 53176 | C152: 20.2 | D152: 18.5 | E152: 2021-01-01 | F152: 245 | G152: 120 | H152: 14402.89 | I152: 122.3
A153: 2021-09-02 | B153: 53454 | C153: 19.4 | D153: 18.7 | E153: 2021-01-01 | F153: 244 | G153: 121 | H153: 14645.25 | I153: 123.9
A154: 2021-09-01 | B154: 53480 | C154: 18.6 | D154: 18.8 | E154: 2021-01-01 | F154: 243 | G154: 122 | H154: 14891.2 | I154: 125.6
A155: 2021-08-31 | B155: 52463 | C155: 18.6 | D155: 18.9 | E155: 2021-01-01 | F155: 242 | G155: 123 | H155: 15135.97 | I155: 126.5
A156: 2021-08-30 | B156: 51830 | C156: 17.8 | D156: 19 | E156: 2021-01-01 | F156: 241 | G156: 124 | H156: 15387.24 | I156: 128.2
A157: 2021-08-29 | B157: 43571 | C157: 17.2 | D157: 19.1 | E157: 2021-01-01 | F157: 240 | G157: 125 | H157: 15640.25 | I157: 129.7
A158: 2021-08-28 | B158: 45392 | C158: 17.5 | D158: 19.2 | E158: 2021-01-01 | F158: 239 | G158: 126 | H158: 15888.89 | I158: 130.3
A159: 2021-08-27 | B159: 50754 | C159: 18.1 | D159: 19.3 | E159: 2021-01-01 | F159: 238 | G159: 127 | H159: 16137.9 | I159: 130.6
A160: 2021-08-26 | B160: 51262 | C160: 18.7 | D160: 19.4 | E160: 2021-01-01 | F160: 237 | G160: 128 | H160: 16389.65 | I160: 130.9
A161: 2021-08-25 | B161: 50291 | C161: 19.3 | D161: 19.5 | E161: 2021-01-01 | F161: 236 | G161: 129 | H161: 16644.14 | I161: 131.2
A162: 2021-08-24 | B162: 50286 | C162: 19.2 | D162: 19.6 | E162: 2021-01-01 | F162: 235 | G162: 130 | H162: 16903.4 | I162: 132.2
A163: 2021-08-23 | B163: 50121 | C163: 19.1 | D163: 19.8 | E163: 2021-01-01 | F163: 234 | G163: 131 | H163: 17164.65 | I163: 133.1
A164: 2021-08-22 | B164: 43043 | C164: 19.9 | D164: 19.9 | E164: 2021-01-01 | F164: 233 | G164: 132 | H164: 17425.22 | I164: 133.2
A165: 2021-08-21 | B165: 45453 | C165: 20.5 | D165: 19.9 | E165: 2021-01-01 | F165: 232 | G165: 133 | H165: 17689.26 | I165: 133.6
A166: 2021-08-20 | B166: 48651 | C166: 20.1 | D166: 20 | E166: 2021-01-01 | F166: 231 | G166: 134 | H166: 17956.81 | I166: 134.9
A167: 2021-08-19 | B167: 48680 | C167: 18.5 | D167: 20.1 | E167: 2021-01-01 | F167: 230 | G167: 135 | H167: 18231.26 | I167: 137.6
A168: 2021-08-18 | B168: 48561 | C168: 18.1 | D168: 20.2 | E168: 2021-01-01 | F168: 229 | G168: 136 | H168: 18504.45 | I168: 139.1
A169: 2021-08-17 | B169: 48104 | C169: 17.7 | D169: 20.3 | E169: 2021-01-01 | F169: 228 | G169: 137 | H169: 18779.98 | I169: 140.6
A170: 2021-08-16 | B170: 47629 | C170: 19.4 | D170: 20.4 | E170: 2021-01-01 | F170: 227 | G170: 138 | H170: 19046.72 | I170: 140
A171: 2021-08-15 | B171: 43247 | C171: 22.7 | D171: 20.4 | E171: 2021-01-01 | F171: 226 | G171: 139 | H171: 19324.05 | I171: 141.1
A172: 2021-08-14 | B172: 46035 | C172: 23.8 | D172: 20.5 | E172: 2021-01-01 | F172: 225 | G172: 140 | H172: 19608.09 | I172: 143.3
A173: 2021-08-13 | B173: 49455 | C173: 23.1 | D173: 20.6 | E173: 2021-01-01 | F173: 224 | G173: 141 | H173: 19885.77 | I173: 143.7
A174: 2021-08-12 | B174: 49241 | C174: 22.9 | D174: 20.7 | E174: 2021-01-01 | F174: 223 | G174: 142 | H174: 20168.1 | I174: 144.6
A175: 2021-08-11 | B175: 48397 | C175: 21.7 | D175: 20.7 | E175: 2021-01-01 | F175: 222 | G175: 143 | H175: 20449.98 | I175: 144.4
A176: 2021-08-10 | B176: 47350 | C176: 20.6 | D176: 20.8 | E176: 2021-01-01 | F176: 221 | G176: 144 | H176: 20736.8 | I176: 145.2
A177: 2021-08-09 | B177: 46369 | C177: 18.6 | D177: 20.8 | E177: 2021-01-01 | F177: 220 | G177: 145 | H177: 21031.4 | I177: 148.2
A178: 2021-08-08 | B178: 41174 | C178: 17.8 | D178: 20.9 | E178: 2021-01-01 | F178: 219 | G178: 146 | H178: 21327.05 | I178: 150.1
A179: 2021-08-07 | B179: 43065 | C179: 17.8 | D179: 20.9 | E179: 2021-01-01 | F179: 218 | G179: 147 | H179: 21620.05 | I179: 151.1
A180: 2021-08-06 | B180: 46785 | C180: 19.3 | D180: 21 | E180: 2021-01-01 | F180: 217 | G180: 148 | H180: 21907.89 | I180: 150.7
A181: 2021-08-05 | B181: 47611 | C181: 18.9 | D181: 21 | E181: 2021-01-01 | F181: 216 | G181: 149 | H181: 22206.41 | I181: 152.1
A182: 2021-08-04 | B182: 48499 | C182: 17.3 | D182: 21.1 | E182: 2021-01-01 | F182: 215 | G182: 150 | H182: 22514.9 | I182: 154.8
A183: 2021-08-03 | B183: 48574 | C183: 17.3 | D183: 21.1 | E183: 2021-01-01 | F183: 214 | G183: 151 | H183: 22815.9 | I183: 155.8
A184: 2021-08-02 | B184: 47858 | C184: 18.2 | D184: 21.1 | E184: 2021-01-01 | F184: 213 | G184: 152 | H184: 23113.05 | I184: 155.9
A185: 2021-08-01 | B185: 42366 | C185: 17.9 | D185: 21.2 | E185: 2021-01-01 | F185: 212 | G185: 153 | H185: 23420.05 | I185: 157.3
A186: 2021-07-31 | B186: 45928 | C186: 18.3 | D186: 21.2 | E186: 2021-01-01 | F186: 211 | G186: 154 | H186: 23724.73 | I186: 157.9
A187: 2021-07-30 | B187: 50917 | C187: 19.5 | D187: 21.2 | E187: 2021-01-01 | F187: 210 | G187: 155 | H187: 24028.69 | I187: 157.7
A188: 2021-07-29 | B188: 52233 | C188: 19.8 | D188: 21.2 | E188: 2021-01-01 | F188: 209 | G188: 156 | H188: 24338.88 | I188: 158.4
A189: 2021-07-28 | B189: 52046 | C189: 19.5 | D189: 21.2 | E189: 2021-01-01 | F189: 208 | G189: 157 | H189: 24652.69 | I189: 159.7
A190: 2021-07-27 | B190: 53264 | C190: 19.4 | D190: 21.2 | E190: 2021-01-01 | F190: 207 | G190: 158 | H190: 24968 | I190: 160.8
A191: 2021-07-26 | B191: 52445 | C191: 20.5 | D191: 21.2 | E191: 2021-01-01 | F191: 206 | G191: 159 | H191: 25282.69 | I191: 160.7
A192: 2021-07-25 | B192: 44784 | C192: 20.4 | D192: 21.2 | E192: 2021-01-01 | F192: 205 | G192: 160 | H192: 25601.8 | I192: 161.8
A193: 2021-07-24 | B193: 47328 | C193: 21.1 | D193: 21.2 | E193: 2021-01-01 | F193: 204 | G193: 161 | H193: 25922.45 | I193: 162.3
A194: 2021-07-23 | B194: 54887 | C194: 23.4 | D194: 21.2 | E194: 2021-01-01 | F194: 203 | G194: =MIN(ABS(F194-$O$4),365-ABS(F194-$O$4)) -> 162 | H194: 26251.2 | I194: =ABS(G194)+ABS($M$4-C194)+ABS($N$4-D194) -> 165.6
A195: 2021-07-22 | B195: 55006 | C195: 24 | D195: 21.2 | E195: =DATE(YEAR(A195),1,1) -> 2021-01-01 | F195: =DATEDIF(E195,A195,"d") -> 202 | G195: 163 | H195: =G195*G195+($M$4-C195)*($M$4-C195)+($N$4-D195)*($N$4-D195) -> 26579.44 | I195: 167.2
A196: 2021-07-21 | B196: 54895 | C196: 23.8 | D196: 21.2 | E196: 2021-01-01 | F196: 201 | G196: 164 | H196: 26905.28 | I196: 168
A197: 2021-07-20 | B197: 54488 | C197: 23.9 | D197: 21.2 | E197: 2021-01-01 | F197: 200 | G197: 165 | H197: 27234.85 | I197: 169.1
A198: 2021-07-19 | B198: 54093 | C198: 24.3 | D198: 21.2 | E198: 2021-01-01 | F198: 199 | G198: 166 | H198: 27568.33 | I198: 170.5
A199: 2021-07-18 | B199: 44533 | C199: 23.1 | D199: 21.1 | E199: 2021-01-01 | F199: 198 | G199: 167 | H199: 27894.62 | I199: 170.2
A200: 2021-07-17 | B200: 46536 | C200: 20.1 | D200: 21.1 | E200: 2021-01-01 | F200: 197 | G200: 168 | H200: 28226.02 | I200: 170
... 3485 more rows
